Cogmind - Beta 14 @@@ ROGUE MODE // 2024.11.26 @ 15:40:52 Player: MarKhan Result: Destroyed by S-27 Virus with Autogun Performance ------------- Evolutions (3) 1500 Regions Visited (5) 1000 Robots Destroyed (1) 5 Value Destroyed (7) 7 Prototype IDs (0) 0 Alien Tech Used (0) 0 Bonus (200) 200 TOTAL SCORE: 2712 Bonus ------- Pacifist 200 Cogmind --------- Core Integrity 0/700 Matter 300/300 Energy 98/100 System Corruption 0% Temperature Cool (0) Movement Core (50) Location -7/Factory Parts ------- > --- POWER (1) -------- (None) > --- PROPULSION (2) --- (None) > --- UTILITY (2) ------ (None) > --- WEAPON (8) ------- (None) > --- INVENTORY (5) ---- (None) Peak State ------------ None Favorites ----------- Power None Propulsion None Utility None Weapon None Build | -11 -10 -10 -10 -8 -7 ------- Run | Yrd Mat Min Sub Mat Fac Slots Evolved 6 | . . . . 4 2 Power . | . . . . . . Propulsion . | . . . . . . Utility . | . . . . . . Weapon 6 | . . . . 4 2 Parts Attached . | . . . . . . Power . | . . . . . . Engine . | . . . . . . Core . | . . . . . . Reactor . | . . . . . . Propulsion . | . . . . . . Treads . | . . . . . . Leg . | . . . . . . Wheel . | . . . . . . Hover . | . . . . . . Flight . | . . . . . . Utility . | . . . . . . Device . | . . . . . . Storage . | . . . . . . Processor . | . . . . . . Hackware . | . . . . . . Protection . | . . . . . . Artifact . | . . . . . . Weapon . | . . . . . . Energy Gun . | . . . . . . Energy Cannon . | . . . . . . Ballistic Gun . | . . . . . . Ballistic Cannon . | . . . . . . Launcher . | . . . . . . Special Weapon . | . . . . . . Impact Weapon . | . . . . . . Slashing Weapon . | . . . . . . Piercing Weapon . | . . . . . . Special Melee Weapon . | . . . . . . Unidentified Prototypes . | . . . . . . Parts Lost . | . . . . . . Power . | . . . . . . Propulsion . | . . . . . . Utility . | . . . . . . Weapon . | . . . . . . Highest Loss Streak . | . . . . . . To Critical Strikes . | . . . . . . Average Slot Usage (%) . | . . . . . . Peak Build Rating . | . . . . . . Average Rating . | . . . . . . On Entrance . | . . . . . . Naked Turns 942 | . 70 491 39 150 192 Heaviest Build . | . . . . . . Greatest Support 3 | 3 3 3 3 3 3 Greatest Overweight (x) . | . . . . . . Average Overweight (x) . | . . . . . . Largest Inventory Capacity 5 | 5 5 5 5 5 5 Average Capacity 5 | 5 5 5 5 5 5 Most Carried . | . . . . . . Average Carried . | . . . . . . Final Capacity 5 | 5 5 5 5 5 5 Final Carried . | . . . . . . Class Distribution -------------------- 100% | Mutant Dominant Class ---------------- Mutant | -10/Materials Mutant | -10/Mines Mutant | -10/Subcaves Mutant | -8/Materials Mutant | -7/Factory Resources | -11 -10 -10 -10 -8 -7 ----------- Run | Yrd Mat Min Sub Mat Fac Matter Collected 200 | 74 . 126 . . . Remotely . | . . . . . . Salvage Created 14 | . . . . 14 . Parts 3 | . . . . 3 . Haulers Intercepted . | . . . . . . Recyclers Shooed . | . . . . . . Parts Field Recycled . | . . . . . . Retrieved Matter . | . . . . . . Parts Self-Destructed . | . . . . . . Prevented . | . . . . . . Kills | -11 -10 -10 -10 -8 -7 ------- Run | Yrd Mat Min Sub Mat Fac Combat Hostiles Destroyed . | . . . . . . Classes Destroyed 1 | . . . . 1 . Tunneler 1 | . . . . 1 . Best Kill Streak 1 | . . . . 1 . Combat Bots Only . | . . . . . . Max Kills in Single Turn 1 | . . . . 1 . Gunslinging . | . . . . . . Exploded . | . . . . . . Melee . | . . . . . . Uniques/NPCs Destroyed . | . . . . . . Combat | -11 -10 -10 -10 -8 -7 -------- Run | Yrd Mat Min Sub Mat Fac Hostile Shots Fired 144 | . . . 4 56 84 Missed 65 | . . . 3 20 42 Damage Taken 1215 | . . . 23 480 712 Core 1215 | . . . 23 480 712 Absorbed by Shields . | . . . . . . Core Remaining (%) 67 | 100 . . 90 12 . Volleys Fired . | . . . . . . Largest . | . . . . . . Hottest . | . . . . . . Shots Fired . | . . . . . . Gun . | . . . . . . Cannon . | . . . . . . Launcher . | . . . . . . Special . | . . . . . . Kinetic . | . . . . . . Thermal . | . . . . . . Explosive . | . . . . . . Electromagnetic . | . . . . . . Robot Hit Streak . | . . . . . . Robot Miss Streak . | . . . . . . Penetration Max . | . . . . . . Secondary Targets . | . . . . . . Shots Hit Robots . | . . . . . . Core Hits 1 | . . . . 1 . Critical Kills . | . . . . . . Critical Parts Destroyed . | . . . . . . Critical Strikes . | . . . . . . Melee Attacks . | . . . . . . Impact . | . . . . . . Slashing . | . . . . . . Piercing . | . . . . . . Sneak Attacks . | . . . . . . Combat Hostiles . | . . . . . . Follow-up Attacks . | . . . . . . Damage Inflicted 48 | . . . . 41 7 Guns . | . . . . . . Cannons . | . . . . . . Explosions . | . . . . . . Melee . | . . . . . . Ramming 48 | . . . . 41 7 Kinetic . | . . . . . . Thermal . | . . . . . . Explosive . | . . . . . . Electromagnetic . | . . . . . . Impact . | . . . . . . Slashing . | . . . . . . Piercing . | . . . . . . Highest Corruption . | . . . . . . Average Corruption . | . . . . . . Corruption Purged . | . . . . . . Corruption Blocked . | . . . . . . Overload Shots . | . . . . . . Overflow Damage . | . . . . . . Projectiles . | . . . . . . Explosions . | . . . . . . Melee . | . . . . . . Knockbacks 1 | . . . . 1 . Impact 1 | . . . . 1 . Kinetic . | . . . . . . Secondary . | . . . . . . Self-Inflicted Damage 22 | . . . . 19 3 Shots . | . . . . . . Rammed 10 | . . . . 8 2 Targets Rammed 10 | . . . . 8 2 Kicked . | . . . . . . Crushed . | . . . . . . Highest Temperature . | . . . . . . Average Temperature . | . . . . . . Received Heat Transfer 177 | . . . 6 162 9 Siege Activations . | . . . . . . Robots Corrupted . | . . . . . . Combat Hostiles . | . . . . . . Parts Fried . | . . . . . . Impact Corruptions . | . . . . . . Robots Melted . | . . . . . . Combat Hostiles . | . . . . . . Parts Melted . | . . . . . . Heat Transferred . | . . . . . . Parts Sabotaged . | . . . . . . Parts Stolen . | . . . . . . Parts Stripped . | . . . . . . Power Chain Reactions . | . . . . . . Alert | -11 -10 -10 -10 -8 -7 ------- Run | Yrd Mat Min Sub Mat Fac Peak Influence 246 | . 96 37 . 170 246 Initial 77 | . . 37 . . 77 Average 48 | . 29 30 . 38 113 Maximum Alert Level 1 | . . . . . 1 Low Security (%) 97 | 100 100 100 . 100 85 Level 1 2 | . . . . . 14 Level 2 . | . . . . . . Level 3 . | . . . . . . Level 4 . | . . . . . . Level 5 . | . . . . . . High Security . | . . . . . . Max Security . | . . . . . . Squads Dispatched 3 | . 1 . . 2 . Investigation . | . . . . . . Extermination . | . . . . . . Reinforcement 3 | . 1 . . 2 . Assault . | . . . . . . Garrison . | . . . . . . Intercept . | . . . . . . Searches Triggered . | . . . . . . Construction Impeded . | . . . . . . Haulers Reinforced . | . . . . . . Active Scanning Responses . | . . . . . . Cargo Convoy Interrupts . | . . . . . . Stealth | -11 -10 -10 -10 -8 -7 --------- Run | Yrd Mat Min Sub Mat Fac Distress Signals 3 | . 1 . . 1 1 Communications Jammed . | . . . . . . Distress Signals . | . . . . . . Times Spotted 44 | . 5 . 4 19 16 Peak Tracking Total 14 | . 7 . 5 14 7 Tactical Retreats 6 | . 1 . . 2 3 Traps | -11 -10 -10 -10 -8 -7 ------- Run | Yrd Mat Min Sub Mat Fac Traps Triggered 1 | . . . . . 1 Indirectly . | . . . . . . Trap Hack Attempts . | . . . . . . Triggered . | . . . . . . Disarmed . | . . . . . . Reprogrammed . | . . . . . . Reused . | . . . . . . Traps Extracted . | . . . . . . Installed . | . . . . . . Triggered . | . . . . . . Machines | -11 -10 -10 -10 -8 -7 ---------- Run | Yrd Mat Min Sub Mat Fac Machines Disabled . | . . . . . . Max in Single Turn . | . . . . . . Machines Repaired . | . . . . . . Machines Dismantled . | . . . . . . Machines Sabotaged . | . . . . . . Overloaded Fab Kills . | . . . . . . Hacking | -11 -10 -10 -10 -8 -7 --------- Run | Yrd Mat Min Sub Mat Fac Machines Accessed 3 | . 1 . . 1 1 Terminals 3 | . 1 . . 1 1 Fabricators . | . . . . . . Repair Stations . | . . . . . . Recycling Units . | . . . . . . Scanalyzers . | . . . . . . Garrison Access . | . . . . . . Total Hacks 8 | . 3 . . 2 3 Successful 3 | . 1 . . . 2 Failed 5 | . 2 . . 2 1 Catastrophic . | . . . . . . Database Lockouts . | . . . . . . Manual 7 | . 3 . . 2 2 Terminals 8 | . 3 . . 2 3 Fabricators . | . . . . . . Repair Stations . | . . . . . . Recycling Units . | . . . . . . Scanalyzers . | . . . . . . Garrison Access . | . . . . . . Terminal Hacks 1 | . 1 . . . . Zone Layout 1 | . 1 . . . . Fabricator Hacks . | . . . . . . Repair Station Hacks . | . . . . . . Recycling Unit Hacks . | . . . . . . Scanalyzer . | . . . . . . Garrison Access Hacks . | . . . . . . Unauthorized Hacks 2 | . . . . . 2 Terminals 2 | . . . . . 2 Botnet 1 | . . . . . 1 Skim 1 | . . . . . 1 Fabricators . | . . . . . . Repair Stations . | . . . . . . Recycling Units . | . . . . . . Scanalyzers . | . . . . . . Garrison Access . | . . . . . . Data Cores Recovered . | . . . . . . Used . | . . . . . . Hacking Detections 3 | . 1 . . 1 1 Full Trace Events . | . . . . . . Feedback Events . | . . . . . . Feedback Blocked . | . . . . . . Robot Schematics Acquired . | . . . . . . Robots Built . | . . . . . . Authchips . | . . . . . . Time . | . . . . . . Total Robot Build Rating . | . . . . . . Part Schematics Acquired . | . . . . . . Parts Built . | . . . . . . Authchips . | . . . . . . Time . | . . . . . . Total Part Build Rating . | . . . . . . Parts Repaired . | . . . . . . Time . | . . . . . . Parts Recycled . | . . . . . . Recycled Matter . | . . . . . . Retrieved Matter . | . . . . . . Retrieved Components . | . . . . . . Parts Scanalyzed . | . . . . . . Part Schematics Acquired . | . . . . . . Parts Damaged . | . . . . . . Bothacking | -11 -10 -10 -10 -8 -7 ------------ Run | Yrd Mat Min Sub Mat Fac Used RIF Installer . | . . . . . . Robots Hacked . | . . . . . . Non-combat . | . . . . . . Combat . | . . . . . . Robot Hacks Applied . | . . . . . . Relay Couplers Released . | . . . . . . Fabnet Peak Effective % . | . . . . . . Robots Rewired . | . . . . . . Allies Hacked . | . . . . . . Hacks Repelled . | . . . . . . Allies | -11 -10 -10 -10 -8 -7 -------- Run | Yrd Mat Min Sub Mat Fac Total Allies . | . . . . . . Largest Group . | . . . . . . Highest-Rated Group . | . . . . . . Highest-Rated Ally . | . . . . . . Total Orders . | . . . . . . Ally Attacks . | . . . . . . Total Damage . | . . . . . . Kills . | . . . . . . Allies Corrupted . | . . . . . . Allies Melted . | . . . . . . Intel | -11 -10 -10 -10 -8 -7 ------- Run | Yrd Mat Min Sub Mat Fac Robot Analysis Total . | . . . . . . Derelict Logs Recovered . | . . . . . . Drone Launches . | . . . . . . Drone Recoveries . | . . . . . . Exploration | -11 -10 -10 -10 -8 -7 ------------- Run | Yrd Mat Min Sub Mat Fac Turns Passed 953 | 11 70 491 39 150 192 Spaces Moved 964 | 22 140 102 77 265 358 Core 964 | 22 140 102 77 265 358 Treads . | . . . . . . Legs . | . . . . . . Wheels . | . . . . . . Hover . | . . . . . . Flight . | . . . . . . Fastest Speed 50 | 50 50 50 50 50 50 Average Speed 50 | 50 50 50 50 50 50 Slowest Speed 50 | 50 50 50 50 50 50 Overloaded Moves . | . . . . . . Propulsion Burnouts . | . . . . . . Robots Hopped . | . . . . . . Cave-ins Triggered . | . . . . . . Exploration Rate (%) 20 | 3 41 23 8 32 14 Regions Visited 5 Branch Regions 2 Pre-discovered Areas . | . . . . . . Known Exits Taken . | . . . . . . Unknown Exits Taken 5 | 1 1 1 1 1 . Scrap Searched 2 | . . 2 . . . Spaces Dug . | . . . . . . Terrain Destroyed . | . . . . . . Melee . | . . . . . . Projectile . | . . . . . . AOE . | . . . . . . Terrain Rammed . | . . . . . . Walls Destroyed . | . . . . . . Machines Disabled . | . . . . . . Actions | -11 -10 -10 -10 -8 -7 --------- Run | Yrd Mat Min Sub Mat Fac Total 1429 | 21 139 541 76 281 371 Wait 459 | . . 440 . 9 10 Move 959 | 21 139 101 76 264 358 Hop . | . . . . . . Pick Up . | . . . . . . Fast Attach . | . . . . . . Attach . | . . . . . . Detach . | . . . . . . Swap . | . . . . . . Drop . | . . . . . . Fire . | . . . . . . Melee . | . . . . . . Ram 10 | . . . . 8 2 Kick . | . . . . . . Crush . | . . . . . . Escape Stasis . | . . . . . . Rewire 1 | . . . . . 1 Trap . | . . . . . . Miscellaneous . | . . . . . . Route ------- -11/Scrapyard -10/Materials -10/Mines -10/Subcaves -8/Materials -7/Factory History --------- Turn | Location | Event 4 | -11/Scrapyard | Discovered new exit (range 13) 12 | -11/Scrapyard | Entered Materials 71 | -10/Materials | Discovered new exit (range 13) 82 | -10/Materials | Entered Mines 83 | -10/Mines | Assembled infested the area 99 | -10/Mines | A weapon hastily lodged in a ceiling crevice suddenly fell to the ground 305 | -10/Mines | Build established: Mutant 563 | -10/Mines | Discovered new exit (range 4) 573 | -10/Mines | Entered Subcaves 605 | -10/Subcaves | Discovered new exit (range 12) 612 | -10/Subcaves | Entered Materials 612 | -8/Materials | Evolved 4 slots: Weapon x4 710 | -8/Materials | Core integrity fell below 50% 752 | -8/Materials | Core integrity fell below 20% 756 | -8/Materials | Discovered new exit (range 12) 762 | -8/Materials | Entered Factory 762 | -7/Factory | Evolved 2 slots: Weapon x2 921 | -7/Factory | Core integrity fell below 50% 950 | -7/Factory | Core integrity fell below 20% 954 | -7/Factory | Destroyed by S-27 Virus with Autogun Last Messages --------------- Testing... Terminal linked with 0 systems. Awaiting botnet instructions. 00846_ ALERT: All DSF locations entering lockdown mode. 00883_ K-01 Serf collects debris. 00886_ K-01 Serf cleans the Assembly Bed. 00892_ K-01 Serf collects debris. 00920_ Triggered Proton Bomb Trap. 00920_ A bubble of electromagnetic force engulfs the area. 00920_ Proton Bomb Trap short circuited. 00920_ A bubble of electromagnetic force engulfs the area. 00940_ ALERT: Infestation at Garrison Access F003, dispatching Demolisher response squad. 00942_ Slammed into S-27 Virus. 00946_ C-30 ARC bursts open, deploying its payload. 00946_ D-53 Grenadier unfolds itself. Map ----- +----------------------------------------------------+ | ?????????????????????????????????????????????????? | | ?????????????????????????????????????????????????? | | ??????????????#############??????????????????????? | | ??????????????? #??????????????????????? | | ???????????????? ! #########??????????????? | | ?????????????# """""" # #??????????????? | | ?????????????# """""" # #??????????????? | | ?????????????# """""" # #??????????????? | | ?????????????# """""" +% #??????????????? | | ?????????????# / #% #??????????????? | | ?????????????# """ # #??????????????? | | ?????????????# """ # s #??????????????? | | ?????????????# """ ! # #??????????????? | | ?????????????# # #??????????????? | | ?????????????# # s #???? ???????? | | ?????????????############## #?? ???????? | | ??????????????????????????# #? ! ??????? | | ??????????????????????????# d# ?????? | | ?????????????????????????## %d ! ?????? | | ?????????????????????????# ###????????????? | | ??????????????????????#### #??????????????? | | ??????????????######### #??????????????? | | ?????????????# #??????????????? | | ?????????????? " " " #??????????????? | | ???????????????? " " " #??????????????? | | ???????????????? " " " @ #??????????????? | | ???????????????? " " " # #??????????????? | | ????????????????? " " " + +??????????????? | | ????????????????? " " " # #??????????????? | | ?????????????????? " " " # #??????????????? | | ?????????????????? " " " # #??????????????? | | ?????????????????? " " " # #??????????????? | | ??????????????????? # ####+###???????? | | ??????????????????? # #???????? | | ????????????????????####### #???????? | | ??????????????????????????# #???????? | | ??????????????????????????# #???????? | | ??????????????????????????# #???????? | | ??????????????????????????# ########???????? | | ??????????????????????????# #??????????????? | | ?????????????????########## ^#??????????????? | | ?????????????????# #??????????????? | | ?????????????????# #??????????????? | | ?????????????????# #??????????????? | | ?????????????????# #??????????????? | | ?????????????????+ #??????????????? | | ?????????????????# #??????????????? | | ?????????????????# #??????????????? | | ?????????????????# ##########??????????????? | | ?????????????????# #???????????????????????? | +----------------------------------------------------+ Best States ------------- Heat Dissipation 34 Energy Generation 5 Energy Capacity 100 Matter Stores 300 Matter Capacity 300 Sight Range 16 Terrain Scan Density 10 Evasion (%) 50 Item Schematics ----------------- None Robot Schematics ------------------ None Fabricated ------------ Nothing Alien Tech Used ----------------- None Achievements -------------- None Challenges ------------ None Game ------ Seed WeightBladeAirjet Manual? 0 Play Time 00:08:56 Cumulative 144.9 hours Start 2024.11.26 @ 15:33:57 End 2024.11.26 @ 15:40:52 Sessions 1 Manual Loads 0 Difficulty Rogue Special Mode None Game No. 142 Rogue 142 Adventurer 0 Explorer 0 Win Type - Total 3 Types 3/0/0/0/0/0/0/0/0 Lore% 58 Gallery% 58 Achievement% 55 Wizard Run 0 Options --------- Layout 1 ASCII 0 Keyboard 1 Movement Arrows Keybinds 0 Fullscreen 0 Font 20/Smallcaps Map View 50x35 Zoom Use 0% Tactical HUD 1 Map Filters NONE Filters NONE Steam 1 RUN: 12bd7319-bbcd-4f61-ba0e-0a973f659c57